[Event "*** Titled Tuesday Blitz"]
[Site "Chess.com"]
[Date "2020.04.28"]
[Round "9"]
[White "AlexZambrano"]
[Black "RodinMihail"]
[Result "0-1"]
[WhiteElo "2354"]
[BlackElo "2524"]
[TimeControl "180+1"]
[EndTime "11:43:47 PDT"]
[Termination "RodinMihail won by resignation"]

1. Nf3 {[%clk 0:02:59.3]} 1... d5 {[%clk 0:02:59.3]} 2. d4 {[%clk 0:02:59]} 2...
Nf6 {[%clk 0:02:59.4]} 3. g3 {[%clk 0:02:59.2]} 3... c6 {[%clk 0:02:57.9]} 4. c4
{[%clk 0:02:59.6]} 4... e6 {[%clk 0:02:58.6]} 5. Bg2 {[%clk 0:02:59.5]} 5...
Nbd7 {[%clk 0:02:59.2]} 6. O-O {[%clk 0:02:59.8]} 6... Bd6 {[%clk 0:02:59.8]} 7.
Nc3 {[%clk 0:02:58.8]} 7... dxc4 {[%clk 0:02:59.8]} 8. e4 {[%clk 0:02:58.2]}
8... e5 {[%clk 0:02:59.8]} 9. a4 {[%clk 0:02:46.3]} 9... a5 {[%clk 0:02:54.5]}
10. Qe2 {[%clk 0:02:44.6]} 10... O-O {[%clk 0:02:34.6]} 11. Qxc4 {[%clk
0:02:40.2]} 11... Qe7 {[%clk 0:02:30.8]} 12. Bg5 {[%clk 0:02:37.7]} 12... exd4
{[%clk 0:02:23.4]} 13. Nxd4 {[%clk 0:02:24.8]} 13... Ne5 {[%clk 0:02:23.2]} 14.
Qe2 {[%clk 0:02:24.6]} 14... h6 {[%clk 0:02:23]} 15. Bxf6 {[%clk 0:01:40.7]}
15... Qxf6 {[%clk 0:02:23.9]} 16. h3 {[%clk 0:01:40.9]} 16... Re8 {[%clk
0:02:20.3]} 17. Rad1 {[%clk 0:01:39.2]} 17... Bc5 {[%clk 0:02:13.7]} 18. Nf3
{[%clk 0:01:23.9]} 18... Nxf3+ {[%clk 0:02:11.6]} 19. Qxf3 {[%clk 0:01:23.1]}
19... Qxf3 {[%clk 0:02:11.6]} 20. Bxf3 {[%clk 0:01:23.4]} 20... Bxh3 {[%clk
0:02:12]} 21. Rfe1 {[%clk 0:01:23.9]} 21... Rad8 {[%clk 0:02:10.7]} 22. Kh2
{[%clk 0:01:21.1]} 22... Be6 {[%clk 0:02:09.3]} 23. Kg1 {[%clk 0:01:21.1]} 23...
Bb3 {[%clk 0:02:09.1]} 24. Rxd8 {[%clk 0:01:14.8]} 24... Rxd8 {[%clk 0:02:10]}
25. Bd1 {[%clk 0:01:14.9]} 25... Bxd1 {[%clk 0:02:02.8]} 26. Rxd1 {[%clk
0:01:14.8]} 26... Rxd1+ {[%clk 0:02:02.2]} 27. Nxd1 {[%clk 0:01:15.2]} 27... Bd4
{[%clk 0:02:02]} 28. Kf1 {[%clk 0:01:14]} 28... h5 {[%clk 0:01:55.2]} 29. Ke2
{[%clk 0:01:12.9]} 29... g5 {[%clk 0:01:55]} 30. Kd3 {[%clk 0:01:12.9]} 30... c5
{[%clk 0:01:55.3]} 31. Kc4 {[%clk 0:01:13.2]} 31... h4 {[%clk 0:01:53.4]} 0-1

[Event "*** Titled Tuesday Blitz"]
[Site "Chess.com"]
[Date "2020.04.28"]
[Round "9"]
[White "isla88"]
[Black "gvanna"]
[Result "0-1"]
[WhiteElo "2312"]
[BlackElo "2457"]
[TimeControl "180+1"]
[EndTime "11:43:56 PDT"]
[Termination "gvanna won by resignation"]

1. d4 {[%clk 0:03:00.9]} 1... d5 {[%clk 0:02:59.9]} 2. Nc3 {[%clk 0:03:00.4]}
2... Bf5 {[%clk 0:02:58.7]} 3. Bf4 {[%clk 0:02:58.5]} 3... c6 {[%clk 0:02:58.5]}
4. f3 {[%clk 0:02:54.9]} 4... h6 {[%clk 0:02:57.2]} 5. g4 {[%clk 0:02:53.4]}
5... Bg6 {[%clk 0:02:56.4]} 6. h4 {[%clk 0:02:53.3]} 6... Nd7 {[%clk 0:02:56.1]}
7. e3 {[%clk 0:02:52.5]} 7... e6 {[%clk 0:02:55.3]} 8. Bd3 {[%clk 0:02:52.2]}
8... Bxd3 {[%clk 0:02:55.3]} 9. Qxd3 {[%clk 0:02:51.4]} 9... Bb4 {[%clk
0:02:55.4]} 10. Ne2 {[%clk 0:02:48.5]} 10... Ne7 {[%clk 0:02:54.4]} 11. Kf2
{[%clk 0:02:47.6]} 11... f6 {[%clk 0:02:45.4]} 12. Ng3 {[%clk 0:02:39.2]} 12...
Qa5 {[%clk 0:02:42.4]} 13. e4 {[%clk 0:02:17.8]} 13... O-O-O {[%clk 0:02:40.9]}
14. Nce2 {[%clk 0:02:11.7]} 14... e5 {[%clk 0:02:39.7]} 15. Be3 {[%clk
0:02:07.7]} 15... dxe4 {[%clk 0:02:38.8]} 16. Nxe4 {[%clk 0:02:03.2]} 16... exd4
{[%clk 0:02:36.7]} 17. Nxd4 {[%clk 0:01:59.8]} 17... Ne5 {[%clk 0:02:34.5]} 18.
Qb3 {[%clk 0:01:58]} 18... Nd5 {[%clk 0:02:31.6]} 19. c3 {[%clk 0:01:39.8]}
19... Bc5 {[%clk 0:02:28.7]} 20. Nxc5 {[%clk 0:01:34.1]} 20... Qxc5 {[%clk
0:02:27.8]} 21. Rad1 {[%clk 0:01:23.3]} 21... Rhe8 {[%clk 0:02:22]} 22. Rhe1
{[%clk 0:01:20.9]} 22... Nxe3 {[%clk 0:02:15.3]} 23. Rxe3 {[%clk 0:01:20.5]}
23... Nc4 {[%clk 0:02:15.6]} 24. Rxe8 {[%clk 0:01:10.9]} 24... Rxe8 {[%clk
0:02:15.5]} 25. Qb4 {[%clk 0:00:39.9]} 25... Qxb4 {[%clk 0:02:14.9]} 26. cxb4
{[%clk 0:00:40.8]} 26... Nxb2 {[%clk 0:02:15.3]} 27. Rd2 {[%clk 0:00:33.4]}
27... Nc4 {[%clk 0:02:13.9]} 28. Rc2 {[%clk 0:00:33.6]} 28... Ne5 {[%clk
0:02:12.8]} 29. Nf5 {[%clk 0:00:31.1]} 29... Rd8 {[%clk 0:02:05.5]} 30. Nxg7
{[%clk 0:00:26.1]} 30... Nd3+ {[%clk 0:02:05.5]} 31. Kg3 {[%clk 0:00:26.4]}
31... Nxb4 {[%clk 0:02:05.5]} 32. Nf5 {[%clk 0:00:25.5]} 32... Nxc2 {[%clk
0:02:04.9]} 0-1

[Event "*** Titled Tuesday Blitz"]
[Site "Chess.com"]
[Date "2020.04.28"]
[Round "9"]
[White "Vamostodorecto"]
[Black "canary2016"]
[Result "1-0"]
[WhiteElo "2444"]
[BlackElo "1897"]
[TimeControl "180+1"]
[EndTime "11:44:00 PDT"]
[Termination "Vamostodorecto won by resignation"]

1. d4 {[%clk 0:03:00.9]} 1... d5 {[%clk 0:02:59.5]} 2. c4 {[%clk 0:02:53.6]}
2... c6 {[%clk 0:02:59.3]} 3. Nc3 {[%clk 0:02:53.7]} 3... Nf6 {[%clk 0:02:58.9]}
4. Nf3 {[%clk 0:02:54.2]} 4... e6 {[%clk 0:02:59.1]} 5. e3 {[%clk 0:02:53.9]}
5... Nbd7 {[%clk 0:02:56.7]} 6. Bd3 {[%clk 0:02:54.1]} 6... dxc4 {[%clk
0:02:56.3]} 7. Bxc4 {[%clk 0:02:55]} 7... b5 {[%clk 0:02:56.5]} 8. Be2 {[%clk
0:02:55.5]} 8... a6 {[%clk 0:02:56.8]} 9. e4 {[%clk 0:02:55.8]} 9... c5 {[%clk
0:02:54.3]} 10. e5 {[%clk 0:02:56.1]} 10... cxd4 {[%clk 0:02:53.4]} 11. Qxd4
{[%clk 0:02:57]} 11... Nd5 {[%clk 0:02:32.4]} 12. Nxd5 {[%clk 0:02:55.4]} 12...
exd5 {[%clk 0:02:30.8]} 13. Qxd5 {[%clk 0:02:56.3]} 13... Nb6 {[%clk 0:02:29]}
14. Qe4 {[%clk 0:02:50.9]} 14... Be7 {[%clk 0:02:19.5]} 15. O-O {[%clk
0:02:49.3]} 15... O-O {[%clk 0:02:18.9]} 16. Bd3 {[%clk 0:02:40.4]} 16... g6
{[%clk 0:02:14.2]} 17. Qe2 {[%clk 0:02:24.6]} 17... Bb7 {[%clk 0:02:12.4]} 18.
Rd1 {[%clk 0:02:17.2]} 18... Qc7 {[%clk 0:02:10.5]} 19. e6 {[%clk 0:02:09.1]}
19... Bd5 {[%clk 0:02:01.6]} 20. Bh6 {[%clk 0:02:03.3]} 20... Rfd8 {[%clk
0:01:59.3]} 21. Rac1 {[%clk 0:02:02.1]} 21... Qb7 {[%clk 0:01:57.3]} 22. exf7+
{[%clk 0:01:41.3]} 22... Bxf7 {[%clk 0:01:56.4]} 23. Qe5 {[%clk 0:01:41.8]}
23... Bf8 {[%clk 0:01:49.6]} 24. Rc7 {[%clk 0:01:39]} 24... Qb8 {[%clk 0:01:42]}
25. Rxf7 {[%clk 0:01:18.3]} 25... Kxf7 {[%clk 0:01:20.5]} 26. Ng5+ {[%clk
0:01:15.8]} 26... Kg8 {[%clk 0:01:03.9]} 27. Qe6+ {[%clk 0:01:14.6]} 1-0

[Event "*** Titled Tuesday Blitz"]
[Site "Chess.com"]
[Date "2020.04.28"]
[Round "9"]
[White "woodhy"]
[Black "Marty435"]
[Result "0-1"]
[WhiteElo "2374"]
[BlackElo "2539"]
[TimeControl "180+1"]
[EndTime "11:44:04 PDT"]
[Termination "Marty435 won by checkmate"]

1. e4 {[%clk 0:03:00.2]} 1... c6 {[%clk 0:03:00.3]} 2. d4 {[%clk 0:02:59.6]}
2... d5 {[%clk 0:03:01.2]} 3. Nc3 {[%clk 0:03:00.2]} 3... dxe4 {[%clk
0:03:01.4]} 4. Nxe4 {[%clk 0:03:00.5]} 4... Bf5 {[%clk 0:03:02.1]} 5. Ng3 {[%clk
0:03:00.2]} 5... Bg6 {[%clk 0:03:02.7]} 6. Nf3 {[%clk 0:03:01.1]} 6... Nd7
{[%clk 0:03:02.1]} 7. Bc4 {[%clk 0:02:58.7]} 7... e6 {[%clk 0:03:00.9]} 8. h4
{[%clk 0:02:58]} 8... h6 {[%clk 0:03:00.1]} 9. Bf4 {[%clk 0:02:56.2]} 9... Ngf6
{[%clk 0:02:55.3]} 10. c3 {[%clk 0:02:53.5]} 10... Be7 {[%clk 0:02:48.1]} 11.
Ne5 {[%clk 0:02:53.6]} 11... Nxe5 {[%clk 0:02:46.7]} 12. Bxe5 {[%clk 0:02:54.5]}
12... O-O {[%clk 0:02:42.1]} 13. Qf3 {[%clk 0:02:52.8]} 13... Nd7 {[%clk
0:02:38.1]} 14. h5 {[%clk 0:02:38.5]} 14... Nxe5 {[%clk 0:02:31.6]} 15. dxe5
{[%clk 0:02:39.4]} 15... Bh7 {[%clk 0:02:31.7]} 16. O-O {[%clk 0:02:33.3]} 16...
Qa5 {[%clk 0:02:27.4]} 17. Rfe1 {[%clk 0:02:32]} 17... Rad8 {[%clk 0:02:25.7]}
18. b4 {[%clk 0:02:31.9]} 18... Qc7 {[%clk 0:02:13.9]} 19. Rad1 {[%clk
0:02:28.3]} 19... Rxd1 {[%clk 0:02:13.2]} 20. Rxd1 {[%clk 0:02:23.5]} 20... Qxe5
{[%clk 0:01:55.4]} 21. Rd7 {[%clk 0:02:22.5]} 21... Bf6 {[%clk 0:01:53.8]} 22.
Rxb7 {[%clk 0:02:19.3]} 22... Qxc3 {[%clk 0:01:52.1]} 23. Qxc6 {[%clk
0:02:09.8]} 23... Bd3 {[%clk 0:01:35.4]} 24. Rc7 {[%clk 0:01:46.6]} 24... Qe1+
{[%clk 0:01:28.8]} 25. Kh2 {[%clk 0:01:44.9]} 25... Qxf2 {[%clk 0:01:15.2]} 26.
Bxd3 {[%clk 0:01:40.7]} 26... Be5 {[%clk 0:01:15.4]} 27. Bh7+ {[%clk 0:01:03.4]}
27... Kh8 {[%clk 0:01:10]} 28. Qc5 {[%clk 0:01:02]} 28... Qxg3+ {[%clk
0:01:07.4]} 29. Kg1 {[%clk 0:01:01.7]} 29... Qe1# {[%clk 0:01:06.9]} 0-1

[Event "*** Titled Tuesday Blitz"]
[Site "Chess.com"]
[Date "2020.04.28"]
[Round "9"]
[White "archess2"]
[Black "Sandstad"]
[Result "1-0"]
[WhiteElo "2258"]
[BlackElo "2382"]
[TimeControl "180+1"]
[EndTime "11:44:11 PDT"]
[Termination "archess2 won on time"]

1. d4 {[%clk 0:03:00.9]} 1... Nf6 {[%clk 0:02:59]} 2. c4 {[%clk 0:03:00.2]} 2...
e6 {[%clk 0:02:59.5]} 3. Nc3 {[%clk 0:02:59.9]} 3... Bb4 {[%clk 0:03:00.2]} 4.
Qc2 {[%clk 0:02:59.6]} 4... O-O {[%clk 0:02:59.4]} 5. e4 {[%clk 0:02:59.5]} 5...
d5 {[%clk 0:02:59.7]} 6. e5 {[%clk 0:02:59.2]} 6... Ne4 {[%clk 0:03:00.3]} 7.
Bd3 {[%clk 0:02:58.5]} 7... c5 {[%clk 0:02:59]} 8. Ne2 {[%clk 0:02:58.2]} 8...
Nc6 {[%clk 0:02:57.5]} 9. a3 {[%clk 0:02:53.8]} 9... Bxc3+ {[%clk 0:02:53.7]}
10. bxc3 {[%clk 0:02:53]} 10... f5 {[%clk 0:02:47]} 11. exf6 {[%clk 0:02:51.6]}
11... Qxf6 {[%clk 0:02:41.2]} 12. f3 {[%clk 0:02:50.5]} 12... cxd4 {[%clk
0:02:04]} 13. fxe4 {[%clk 0:02:43.4]} 13... Qf2+ {[%clk 0:01:32.2]} 14. Kd1
{[%clk 0:02:42]} 14... Qxg2 {[%clk 0:01:32.2]} 15. Rg1 {[%clk 0:02:40.5]} 15...
Rf1+ {[%clk 0:01:31.9]} 16. Rxf1 {[%clk 0:02:33.6]} 16... Qxf1+ {[%clk
0:01:32.8]} 17. Kd2 {[%clk 0:02:30.2]} 17... Ne5 {[%clk 0:01:24]} 18. cxd4
{[%clk 0:02:28.4]} 18... Nf3+ {[%clk 0:01:15.3]} 19. Kc3 {[%clk 0:02:24.4]}
19... dxc4 {[%clk 0:01:09.6]} 20. Bxc4 {[%clk 0:02:21.2]} 20... Bd7 {[%clk
0:01:06.7]} 21. Bb2 {[%clk 0:02:17.6]} 21... Qf2 {[%clk 0:00:15.2]} 22. Qd3
{[%clk 0:02:07.7]} 22... Rc8 {[%clk 0:00:12]} 23. a4 {[%clk 0:01:54.3]} 1-0

[Event "*** Titled Tuesday Blitz"]
[Site "Chess.com"]
[Date "2020.04.28"]
[Round "9"]
[White "ChessQueen"]
[Black "StegariuVlad"]
[Result "1-0"]
[WhiteElo "2729"]
[BlackElo "2527"]
[TimeControl "180+1"]
[EndTime "11:44:19 PDT"]
[Termination "ChessQueen won by resignation"]

1. Nf3 {[%clk 0:03:00.9]} 1... Nf6 {[%clk 0:02:58.2]} 2. g3 {[%clk 0:03:00.9]}
2... d5 {[%clk 0:02:57.6]} 3. Bg2 {[%clk 0:03:01.2]} 3... Bf5 {[%clk 0:02:57.6]}
4. O-O {[%clk 0:03:00.2]} 4... h6 {[%clk 0:02:57.6]} 5. c4 {[%clk 0:02:58.2]}
5... c6 {[%clk 0:02:56.4]} 6. d3 {[%clk 0:02:56.5]} 6... e6 {[%clk 0:02:56.2]}
7. cxd5 {[%clk 0:02:54.5]} 7... exd5 {[%clk 0:02:56]} 8. Qb3 {[%clk 0:02:51.9]}
8... Qb6 {[%clk 0:02:55.6]} 9. Qc2 {[%clk 0:02:52.2]} 9... Be7 {[%clk
0:02:54.6]} 10. Nc3 {[%clk 0:02:52.3]} 10... O-O {[%clk 0:02:52.7]} 11. e4
{[%clk 0:02:52]} 11... dxe4 {[%clk 0:02:51.9]} 12. dxe4 {[%clk 0:02:52.9]} 12...
Bh7 {[%clk 0:02:52.3]} 13. Be3 {[%clk 0:02:52.1]} 13... Qc7 {[%clk 0:02:47.9]}
14. Rfe1 {[%clk 0:02:50.3]} 14... Nbd7 {[%clk 0:02:47.5]} 15. Rad1 {[%clk
0:02:50.2]} 15... Rad8 {[%clk 0:02:46.9]} 16. Bf4 {[%clk 0:02:42.2]} 16... Qa5
{[%clk 0:02:44.1]} 17. a3 {[%clk 0:02:42.4]} 17... Nb8 {[%clk 0:02:27.8]} 18.
Nd4 {[%clk 0:02:33.7]} 18... Qb6 {[%clk 0:02:16.5]} 19. Be3 {[%clk 0:02:28]}
19... Qc7 {[%clk 0:02:14.5]} 20. Ncb5 {[%clk 0:02:03.3]} 20... Qa5 {[%clk
0:02:14.3]} 21. b4 {[%clk 0:01:59.6]} 21... Qb6 {[%clk 0:02:00.4]} 22. Nf5
{[%clk 0:01:57.8]} 22... Qxb5 {[%clk 0:01:59.5]} 23. Nxe7+ {[%clk 0:01:58]}
23... Kh8 {[%clk 0:02:00]} 24. Bxa7 {[%clk 0:01:56.9]} 24... Qa6 {[%clk
0:01:49.2]} 25. Bc5 {[%clk 0:01:54.5]} 25... Rxd1 {[%clk 0:01:39.6]} 26. Qxd1
{[%clk 0:01:43.4]} 26... Re8 {[%clk 0:01:37.8]} 27. e5 {[%clk 0:01:40.6]} 27...
Nfd7 {[%clk 0:01:36.3]} 28. Qb3 {[%clk 0:01:37.1]} 28... Bg8 {[%clk 0:00:47.8]}
29. Bd6 {[%clk 0:01:33.5]} 29... Nxe5 {[%clk 0:00:39]} 30. Bxe5 {[%clk
0:01:32.3]} 30... f6 {[%clk 0:00:36.4]} 31. Nxg8 {[%clk 0:01:31.6]} 1-0

[Event "*** Titled Tuesday Blitz"]
[Site "Chess.com"]
[Date "2020.04.28"]
[Round "9"]
[White "KrolPawel92OnTwitch"]
[Black "Sanyura"]
[Result "0-1"]
[WhiteElo "2646"]
[BlackElo "2518"]
[TimeControl "180+1"]
[EndTime "11:44:22 PDT"]
[Termination "Sanyura won by checkmate"]

1. b3 {[%clk 0:00:56.5]} 1... Nf6 {[%clk 0:02:57.2]} 2. Bb2 {[%clk 0:00:57.4]}
2... g6 {[%clk 0:02:57.2]} 3. g3 {[%clk 0:00:58.3]} 3... Bg7 {[%clk 0:02:57.2]}
4. Bg2 {[%clk 0:00:59.2]} 4... O-O {[%clk 0:02:57.7]} 5. Nf3 {[%clk 0:01:00.1]}
5... d6 {[%clk 0:02:58.2]} 6. O-O {[%clk 0:01:00.7]} 6... Nbd7 {[%clk
0:02:58.8]} 7. d4 {[%clk 0:01:01.4]} 7... e5 {[%clk 0:02:59.4]} 8. dxe5 {[%clk
0:01:02.1]} 8... Ng4 {[%clk 0:02:59.8]} 9. c4 {[%clk 0:01:02.5]} 9... Ngxe5
{[%clk 0:03:00]} 10. Nd4 {[%clk 0:01:02.9]} 10... a5 {[%clk 0:02:59.7]} 11. Nc3
{[%clk 0:01:02.7]} 11... c6 {[%clk 0:02:57.4]} 12. Qc2 {[%clk 0:01:02.1]} 12...
Nxc4 {[%clk 0:02:53.6]} 13. Nxc6 {[%clk 0:00:59.9]} 13... bxc6 {[%clk
0:02:51.6]} 14. bxc4 {[%clk 0:01:00.4]} 14... Rb8 {[%clk 0:02:50.1]} 15. Rad1
{[%clk 0:01:00.5]} 15... Ne5 {[%clk 0:02:44.3]} 16. Na4 {[%clk 0:00:59.1]} 16...
Bf5 {[%clk 0:02:41]} 17. e4 {[%clk 0:00:47.4]} 17... Bg4 {[%clk 0:02:40.7]} 18.
f3 {[%clk 0:00:40.6]} 18... Be6 {[%clk 0:02:38.4]} 19. c5 {[%clk 0:00:41.1]}
19... Rb4 {[%clk 0:02:08.4]} 20. cxd6 {[%clk 0:00:31.3]} 20... Rc4 {[%clk
0:02:05.5]} 21. Nc3 {[%clk 0:00:30.1]} 21... Qb6+ {[%clk 0:01:54.1]} 22. Kh1
{[%clk 0:00:29.7]} 22... Rb4 {[%clk 0:01:53.8]} 23. Ba1 {[%clk 0:00:29.8]} 23...
Nc4 {[%clk 0:01:53.6]} 24. f4 {[%clk 0:00:26.6]} 24... Ne3 {[%clk 0:01:53.3]}
25. Qd3 {[%clk 0:00:26.8]} 25... Nxf1 {[%clk 0:01:52.5]} 26. Rxf1 {[%clk
0:00:25.6]} 26... Bc4 {[%clk 0:01:51.9]} 27. Qd2 {[%clk 0:00:18.5]} 27... Bxf1
{[%clk 0:01:51.9]} 28. Bxf1 {[%clk 0:00:19.4]} 28... Rb1 {[%clk 0:01:51.1]} 29.
Nxb1 {[%clk 0:00:12.8]} 29... Qxb1 {[%clk 0:01:52]} 30. Qd4 {[%clk 0:00:10.8]}
30... Bxd4 {[%clk 0:01:49.6]} 31. Bc3 {[%clk 0:00:08.9]} 31... Qxf1# {[%clk
0:01:49.4]} 0-1

[Event "*** Titled Tuesday Blitz"]
[Site "Chess.com"]
[Date "2020.04.28"]
[Round "9"]
[White "Ashedu66"]
[Black "dennisodessa"]
[Result "1-0"]
[WhiteElo "2137"]
[BlackElo "2291"]
[TimeControl "180+1"]
[EndTime "11:44:30 PDT"]
[Termination "Ashedu66 won by resignation"]

1. d4 {[%clk 0:03:00.9]} 1... Nf6 {[%clk 0:02:59]} 2. Nf3 {[%clk 0:02:59.4]}
2... e6 {[%clk 0:02:59.5]} 3. c4 {[%clk 0:02:58.9]} 3... Bb4+ {[%clk 0:02:58.1]}
4. Nbd2 {[%clk 0:02:57.4]} 4... b6 {[%clk 0:02:56.7]} 5. e3 {[%clk 0:02:56.9]}
5... Bb7 {[%clk 0:02:56.2]} 6. Bd3 {[%clk 0:02:56.8]} 6... O-O {[%clk
0:02:56.1]} 7. O-O {[%clk 0:02:56.7]} 7... d6 {[%clk 0:02:55.7]} 8. Nb3 {[%clk
0:02:45.7]} 8... d5 {[%clk 0:02:49.5]} 9. c5 {[%clk 0:02:17.5]} 9... bxc5 {[%clk
0:02:50.4]} 10. a3 {[%clk 0:02:13.6]} 10... c4 {[%clk 0:02:49]} 11. axb4 {[%clk
0:02:08.1]} 11... cxb3 {[%clk 0:02:38.7]} 12. Qxb3 {[%clk 0:02:04.4]} 12... Nbd7
{[%clk 0:02:39]} 13. Bd2 {[%clk 0:02:02.9]} 13... Nb6 {[%clk 0:02:39.9]} 14.
Rfc1 {[%clk 0:02:02]} 14... Ne4 {[%clk 0:02:37.7]} 15. Be1 {[%clk 0:02:01.6]}
15... Nd6 {[%clk 0:02:32.8]} 16. b5 {[%clk 0:01:43.5]} 16... Ndc4 {[%clk
0:02:25.9]} 17. Bb4 {[%clk 0:01:42.1]} 17... Re8 {[%clk 0:02:23.5]} 18. Bc5
{[%clk 0:01:33.1]} 18... c6 {[%clk 0:02:17.2]} 19. Ne5 {[%clk 0:01:11.4]} 19...
cxb5 {[%clk 0:01:58.4]} 20. Qxb5 {[%clk 0:01:07.1]} 20... Nd6 {[%clk 0:01:20.1]}
21. Bxd6 {[%clk 0:00:48.6]} 21... Qxd6 {[%clk 0:01:21]} 22. Rxa7 {[%clk
0:00:39.4]} 22... Rxa7 {[%clk 0:00:59.3]} 23. Qxe8+ {[%clk 0:00:38]} 23... Qf8
{[%clk 0:01:00.2]} 24. Bxh7+ {[%clk 0:00:36.7]} 1-0

[Event "*** Titled Tuesday Blitz"]
[Site "Chess.com"]
[Date "2020.04.28"]
[Round "9"]
[White "SamuelGhimpu2003"]
[Black "JozefKneht"]
[Result "1-0"]
[WhiteElo "2697"]
[BlackElo "2461"]
[TimeControl "180+1"]
[EndTime "11:44:35 PDT"]
[Termination "SamuelGhimpu2003 won by resignation"]

1. e4 {[%clk 0:03:00.9]} 1... e5 {[%clk 0:02:58.8]} 2. Nf3 {[%clk 0:03:00.7]}
2... Nc6 {[%clk 0:02:58.9]} 3. Bc4 {[%clk 0:02:58.9]} 3... Bc5 {[%clk
0:02:57.1]} 4. O-O {[%clk 0:02:57.6]} 4... Nf6 {[%clk 0:02:56.6]} 5. c3 {[%clk
0:02:58.5]} 5... Nxe4 {[%clk 0:02:54.7]} 6. d4 {[%clk 0:02:58]} 6... exd4 {[%clk
0:02:46.5]} 7. cxd4 {[%clk 0:02:58.9]} 7... d5 {[%clk 0:02:46.6]} 8. dxc5 {[%clk
0:02:58]} 8... dxc4 {[%clk 0:02:46.3]} 9. Qe2 {[%clk 0:02:58.9]} 9... Qe7 {[%clk
0:02:37.9]} 10. Qxc4 {[%clk 0:02:49.3]} 10... Nxc5 {[%clk 0:02:29.9]} 11. Be3
{[%clk 0:02:39.7]} 11... Ne6 {[%clk 0:02:23.3]} 12. Nc3 {[%clk 0:02:39.8]} 12...
Qb4 {[%clk 0:02:17.1]} 13. Qe2 {[%clk 0:02:37.5]} 13... O-O {[%clk 0:02:09.7]}
14. Nd5 {[%clk 0:02:37.3]} 14... Qg4 {[%clk 0:02:04.6]} 15. Rac1 {[%clk
0:02:27.5]} 15... Bd7 {[%clk 0:02:02.1]} 16. Rfd1 {[%clk 0:02:25.2]} 16... Ne5
{[%clk 0:01:51.6]} 17. h3 {[%clk 0:02:01.2]} 17... Nxf3+ {[%clk 0:01:49.1]} 18.
Qxf3 {[%clk 0:02:02.1]} 18... Qxf3 {[%clk 0:01:48.7]} 19. gxf3 {[%clk 0:02:03]}
19... Rfd8 {[%clk 0:01:38.3]} 20. Nxc7 {[%clk 0:01:57.2]} 20... Nxc7 {[%clk
0:01:31.6]} 21. Rxc7 {[%clk 0:01:58.1]} 21... Bc6 {[%clk 0:01:19.4]} 22. Rxd8+
{[%clk 0:01:59]} 22... Rxd8 {[%clk 0:01:18.7]} 23. Kg2 {[%clk 0:01:57.7]} 23...
a6 {[%clk 0:01:16.8]} 24. Bb6 {[%clk 0:01:53.7]} 24... Re8 {[%clk 0:01:16]} 25.
Kg3 {[%clk 0:01:48.4]} 25... h6 {[%clk 0:01:15.2]} 26. Be3 {[%clk 0:01:43.6]}
26... Re6 {[%clk 0:01:11.9]} 27. f4 {[%clk 0:01:41.4]} 27... Rd6 {[%clk
0:01:05.8]} 28. f5 {[%clk 0:01:39.2]} 28... Rf6 {[%clk 0:01:00.4]} 29. Kg4
{[%clk 0:01:33.5]} 29... Be4 {[%clk 0:00:58.8]} 30. Rc5 {[%clk 0:01:30.5]} 30...
Bc6 {[%clk 0:00:57.8]} 31. h4 {[%clk 0:01:27.7]} 31... Bd7 {[%clk 0:00:52.4]}
32. Rd5 {[%clk 0:01:23.2]} 32... Bc6 {[%clk 0:00:48.1]} 33. Rd8+ {[%clk
0:01:23.1]} 33... Kh7 {[%clk 0:00:48.1]} 34. Bd4 {[%clk 0:01:24]} 1-0

[Event "*** Titled Tuesday Blitz"]
[Site "Chess.com"]
[Date "2020.04.28"]
[Round "9"]
[White "viktorskliarov"]
[Black "Quiet_Desperation"]
[Result "1-0"]
[WhiteElo "2605"]
[BlackElo "1849"]
[TimeControl "180+1"]
[EndTime "11:44:37 PDT"]
[Termination "viktorskliarov won by resignation"]

1. e4 {[%clk 0:02:57.2]} 1... e6 {[%clk 0:02:59.5]} 2. d4 {[%clk 0:02:57]} 2...
d5 {[%clk 0:02:59.1]} 3. e5 {[%clk 0:02:57.4]} 3... Qd7 {[%clk 0:02:58.7]} 4. c3
{[%clk 0:02:57.1]} 4... b6 {[%clk 0:02:58.7]} 5. a4 {[%clk 0:02:57.4]} 5... Ba6
{[%clk 0:02:57.6]} 6. Bxa6 {[%clk 0:02:56.8]} 6... Nxa6 {[%clk 0:02:57.6]} 7. a5
{[%clk 0:02:57.6]} 7... b5 {[%clk 0:02:52.5]} 8. Nf3 {[%clk 0:02:54.6]} 8... c5
{[%clk 0:02:43.8]} 9. dxc5 {[%clk 0:02:42.4]} 9... Bxc5 {[%clk 0:02:40]} 10. O-O
{[%clk 0:02:41.2]} 10... Nh6 {[%clk 0:02:11.8]} 11. Bxh6 {[%clk 0:02:39.9]}
11... gxh6 {[%clk 0:02:11.5]} 12. b4 {[%clk 0:02:31.8]} 12... Be7 {[%clk
0:02:06.9]} 13. Nbd2 {[%clk 0:02:30.9]} 13... Rg8 {[%clk 0:02:02.9]} 14. Qe2
{[%clk 0:02:27.7]} 14... Nc7 {[%clk 0:02:02.4]} 15. a6 {[%clk 0:02:20.2]} 15...
Rb8 {[%clk 0:01:46.8]} 16. Nd4 {[%clk 0:02:12.1]} 16... Rb6 {[%clk 0:01:43.3]}
17. Ra5 {[%clk 0:02:12.1]} 17... Rg6 {[%clk 0:01:32.1]} 18. Rfa1 {[%clk
0:02:03.8]} 18... f5 {[%clk 0:01:18.3]} 19. exf6 {[%clk 0:01:56.2]} 19... Bxf6
{[%clk 0:01:18.5]} 20. N2b3 {[%clk 0:01:56.3]} 20... Be7 {[%clk 0:01:17.4]} 21.
Nc5 {[%clk 0:01:44.6]} 21... Bxc5 {[%clk 0:01:16.3]} 22. bxc5 {[%clk 0:01:44.7]}
22... Rb8 {[%clk 0:01:16.7]} 23. Qe5 {[%clk 0:01:44.9]} 23... Qg7 {[%clk
0:01:11.8]} 24. Qxg7 {[%clk 0:01:41.1]} 24... Rxg7 {[%clk 0:01:11.8]} 25. Rb1
{[%clk 0:01:41.1]} 25... Rg4 {[%clk 0:00:59.5]} 26. f3 {[%clk 0:01:35.5]} 26...
Rf4 {[%clk 0:00:53.5]} 27. Kf2 {[%clk 0:01:25.5]} 27... Kd7 {[%clk 0:00:37.1]}
28. g3 {[%clk 0:01:22.5]} 28... Rf6 {[%clk 0:00:35.4]} 29. Nxb5 {[%clk
0:01:20.7]} 29... Nxb5 {[%clk 0:00:35.5]} 30. Raxb5 {[%clk 0:01:20.7]} 30... Rc8
{[%clk 0:00:31.8]} 31. Rb7+ {[%clk 0:01:18.9]} 31... Ke8 {[%clk 0:00:28.6]} 32.
Rxa7 {[%clk 0:01:18.1]} 32... Rxc5 {[%clk 0:00:28.2]} 1-0